bitfinex-derivatives/quotes_ETHF0:USTF0_20251118
["timestamp","ask_amount","ask_price","bid_price","bid_amount"]
[1763479844940,0.52115,3111.4,3109.5,10.419]
[1763479844941,4.14341955,3111.4,3110.3,3.2078]
[1763479845141,0.93561955,3111.3,3110.9,0.52123]
[1763479845344,0.93867376,3111.3,3111.1,0.52119]
[1763479845549,0.00305421,3111.3,3111.1,3.72899]
[1763479845747,0.00305421,3111.3,3110.9,0.00239027]
[1763479845941,3.72901,3111.1,3110.9,0.00239027]
[1763479846141,3.2078,3111.1,3110.9,0.00239027]
[1763479846637,3.72901,3111.1,3110.9,0.00239027]
[1763479846839,0.91770499,3111.0,3110.9,0.00239027]
[1763479847043,0.91770499,3111.0,3109.6,6.4278]
[1763479847044,0.52136,3110.2,3109.6,6.4278]
[1763479847349,3.2078,3110.6,3110.1,0.52135]
[1763479847546,1.14218725,3111.2,3110.5,3.2078]
[1763479847735,0.91750582,3111.1,3110.6,3.2078]
[1763479847939,0.00305421,3111.3,3110.8,0.52124]
[1763479848146,0.00305421,3111.3,3110.7,0.00482245]
[1763479848536,0.00305421,3111.3,3111.0,3.2078]
[1763479848735,0.00305421,3111.3,3110.7,0.00482245]
[1763479849046,0.9321,3110.9,3109.8,3.2078]
[1763479849236,3.2078,3110.3,3109.8,3.2078]
[1763479849444,0.90683124,3110.2,3109.3,3.2078]
[1763479849747,0.90683124,3110.2,3109.8,0.52141]
[1763479849937,0.90683124,3110.2,3109.4,0.52148]
[1763479850146,0.00482245,3110.1,3109.5,0.00482245]
[1763479851048,0.91167455,3110.1,3109.8,3.2078]
[1763479851248,0.00482245,3110.1,3109.5,0.00482245]
[1763479851454,0.00482245,3110.1,3109.6,0.52144]
[1763479851745,3.2078,3110.0,3109.5,0.00482245]
[1763479852341,3.2078,3110.0,3109.5,3.21262245]
[1763479852544,0.00482245,3110.1,3109.9,0.52139]
[1763479853251,0.00482245,3110.1,3110.0,3.2078]
[1763479853445,3.2078,3110.9,3110.0,6.423]
[1763479853648,0.52132,3110.4,3110.0,3.2078]
[1763479853948,3.2078,3110.5,3109.6,3.2078]
[1763479854162,3.2078,3110.1,3109.5,0.00482245]
[1763479854449,0.52141,3109.9,3109.5,0.00482245]
[1763479854754,3.21262245,3110.1,3109.5,0.00482245]
[1763479854755,0.52139,3110.0,3109.5,0.00482245]
[1763479854943,3.21262245,3110.1,3109.5,0.00482245]
[1763479855149,0.52141,3109.9,3109.5,0.00482245]
[1763479855347,3.73400245,3110.1,3109.5,0.00482245]
[1763479855545,3.21262245,3110.1,3109.5,0.00482245]
[1763479855850,0.52142,3109.8,3109.5,0.00482245]
[1763479856149,0.52143,3109.8,3109.5,0.00482245]
[1763479856338,3.21262245,3110.1,3109.5,0.00482245]
[1763479856339,0.52141,3109.9,3109.5,0.00482245]
[1763479856546,0.90721531,3109.8,3109.5,0.00482245]
[1763479856746,1.42865531,3109.7,3109.5,0.00482245]
[1763479856950,0.52144,3109.7,3109.5,0.00482245]
[1763479857147,0.8702,3109.2,3108.3,3.2078]
[1763479857454,0.8702,3109.2,3107.1,0.26134546]
[1763479857455,3.2078,3108.4,3107.1,0.26134546]
[1763479857651,3.2078,3108.4,3107.8,0.52175]
[1763479857851,3.2078,3108.4,3107.4,3.2078]
[1763479858050,3.2078,3108.0,3107.1,0.29876543]
[1763479858253,0.00482245,3107.9,3107.2,0.00482245]
[1763479858448,0.00482245,3107.9,3107.7,0.52176]
[1763479858653,1.14218725,3109.0,3107.2,0.00482245]
[1763479858654,1.14218725,3109.4,3107.8,11.5868]
[1763479858851,3.2078,3110.3,3110.1,0.52136]
[1763479859154,3.2078,3110.7,3110.5,0.52129]
[1763479859350,3.2078,3111.6,3111.1,0.52119]
[1763479859561,3.2078,3111.6,3110.5,3.2078]
[1763479859747,3.21015899,3111.6,3111.1,0.0034365]
[1763479859953,3.21015899,3111.6,3111.1,3.2112365]
[1763479860151,3.21015899,3111.6,3111.1,0.0034365]
[1763479860355,3.21015899,3111.6,3111.3,0.52116]
[1763479860554,3.2078,3112.2,3112.1,0.52103]
[1763479860861,1.7106845,3113.1,3112.3,0.52099]
[1763479860862,0.52087,3113.1,3112.3,0.52099]
[1763479861051,0.52087,3113.1,3111.4,3.2136]
[1763479861052,0.52096,3112.6,3111.0,3.21262245]
[1763479861252,3.2078,3112.7,3111.8,3.2078]
[1763479861456,1.14218725,3114.2,3112.6,3.2078]
[1763479861750,0.00482245,3113.7,3113.5,3.72859]
[1763479861947,0.00482245,3113.7,3113.5,3.21071778]
[1763479862154,0.00241065,3114.2,3114.0,0.52071]
[1763479862457,3.2078,3115.4,3114.1,11.5858]
[1763479862645,3.2078,3115.0,3114.1,3.2078]
[1763479862851,0.52058,3114.9,3114.1,3.2078]
[1763479863162,0.52065,3114.4,3113.5,0.00291778]
[1763479863455,0.00369511,3114.4,3114.2,0.00482245]
[1763479863666,0.52066,3114.3,3114.2,0.00482245]
[1763479863953,0.00369511,3114.4,3113.5,3.21071778]
[1763479864356,0.52072,3114.0,3113.5,3.21071778]
[1763479864660,0.5209,3112.9,3112.7,3.2078]
[1763479864965,3.2078,3113.0,3110.7,3.2078]
[1763479865153,3.2078,3111.6,3110.7,3.2078]
[1763479865353,3.2078,3111.4,3110.4,0.9412]
[1763479865550,3.21037062,3111.4,3110.5,0.52129]
[1763479865744,0.00257062,3111.4,3110.6,3.2078]
[1763479865944,0.00257062,3111.4,3110.4,0.94392159]
[1763479865945,0.00257062,3111.4,3111.1,3.2078]
[1763479866155,1.7106845,3113.3,3111.1,3.2078]
[1763479866156,3.2078,3113.3,3111.1,3.2078]
[1763479866358,2.42592804,3113.3,3112.7,3.72872]
[1763479866657,3.2078,3112.8,3111.8,3.2078]
[1763479866859,3.2078,3112.9,3111.8,3.2078]
[1763479867157,3.2078,3112.0,3111.8,0.00282155]
[1763479867354,3.72886,3112.0,3111.8,0.00282155]
[1763479867662,3.2078,3112.0,3111.8,0.00282155]
[1763479867957,3.2078,3112.4,3111.8,0.00282155]
[1763479868253,3.7288,3112.4,3111.8,0.00282155]
[1763479868461,3.2078,3112.0,3111.8,0.00282155]
[1763479868666,3.2078,3112.4,3111.8,0.52389155]
[1763479868956,3.2078,3112.0,3111.8,0.00282155]
[1763479869458,3.2078,3112.4,3111.8,0.00282155]
[1763479869650,0.00337095,3112.9,3112.2,4.149]
[1763479869854,3.2078,3113.9,3112.6,3.2078]
[1763479870063,3.2078,3114.4,3113.0,3.2078]
[1763479870359,3.2078,3114.4,3112.3,16.663]
[1763479870360,3.2078,3114.5,3113.2,3.2078]
[1763479870549,3.2078,3114.1,3113.2,3.2078]
[1763479870755,0.00481349,3114.0,3113.8,0.52075]
[1763479870954,3.2078,3114.7,3113.7,3.2078]
[1763479871155,3.2078,3114.3,3113.7,3.2078]
[1763479871353,3.2078,3114.3,3113.3,0.00482245]
[1763479871554,3.2078,3113.4,3113.3,0.00482245]
[1763479871761,3.2078,3114.0,3113.3,3.21262245]
[1763479871959,3.20955411,3114.0,3113.8,0.52074]
[1763479872351,3.20955411,3114.0,3113.3,3.21262245]
[1763479872562,3.20955411,3114.0,3113.8,0.52074]
[1763479872753,3.20955411,3114.0,3113.3,0.00482245]
[1763479873059,3.2078,3113.6,3113.3,0.00482245]
[1763479873458,3.20955411,3114.0,3113.8,0.52074]
[1763479873657,3.20955411,3114.0,3113.3,0.00482245]
[1763479873959,3.2078,3113.7,3113.3,0.00482245]
[1763479874162,3.2078,3113.7,3113.5,0.52079]
[1763479874355,3.2078,3113.7,3113.3,0.00482245]
[1763479874659,0.00175411,3114.0,3113.9,0.52073]
[1763479875050,3.2078,3115.3,3114.7,0.52059]
[1763479875254,0.8702,3114.8,3113.1,3.2078]
[1763479875554,3.2078,3113.8,3113.0,3.2078]
[1763479875751,3.2078,3113.8,3111.5,10.418]
[1763479875752,0.52082,3113.4,3112.6,3.2078]
[1763479875960,0.52081,3113.5,3112.6,3.2078]
[1763479876159,3.2078,3113.7,3112.6,3.21033222]
[1763479876366,3.21262245,3113.5,3112.8,0.00482245]
[1763479876656,3.2078,3114.6,3112.8,0.00482245]
[1763479876856,3.2078,3114.2,3113.1,3.2078]
[1763479877052,3.2078,3115.0,3113.5,3.2078]
[1763479877249,3.98225385,3116.2,3112.9,4.36]
[1763479877250,3.2078,3115.4,3114.2,3.2078]
[1763479877450,3.2078,3114.5,3113.2,3.2078]
[1763479877661,0.52065,3114.4,3113.8,0.52074]
[1763479877970,3.2078,3114.1,3113.5,0.00482245]
[1763479878261,1.7106845,3115.9,3112.8,3.2078]
[1763479878262,3.2078,3113.6,3112.8,3.2078]
[1763479878468,3.2078,3113.1,3112.6,0.00253222]
[1763479878671,3.2078,3113.1,3112.4,3.2078]
[1763479878968,3.2078,3112.5,3111.8,3.2078]
[1763479879167,3.21262245,3112.5,3111.8,3.21262245]
[1763479879356,0.00482245,3112.5,3111.8,3.21262245]
[1763479879655,0.00735467,3112.5,3112.3,0.52099]
[1763479880359,0.00735467,3112.5,3112.3,6.52099]
[1763479880561,0.00735467,3112.5,3111.8,3.21621733]
[1763479880762,0.52102,3112.2,3111.2,3.2078]
[1763479880963,0.00735467,3112.5,3112.0,3.2078]
[1763479881165,0.00735467,3112.5,3112.3,0.52099]
[1763479881459,0.00735467,3112.5,3111.5,3.2078]
[1763479881664,3.2078,3112.2,3111.5,3.2078]
[1763479881861,0.52111,3111.6,3111.5,0.0071264]
[1763479882061,3.2078,3111.8,3110.6,3.2078]
[1763479882267,3.2078,3111.4,3110.6,3.2078]
[1763479882462,3.2078,3111.4,3110.9,0.52123]
[1763479882666,0.00735467,3112.5,3109.6,4.1466]
[1763479882667,3.2078,3111.0,3109.6,4.1466]
[1763479882856,3.2078,3110.9,3109.6,3.2078]
[1763479883060,0.00482245,3110.6,3110.0,0.52137]
[1763479883263,0.00482245,3110.6,3110.5,3.2078]
[1763479883567,0.52114,3111.5,3110.5,3.2078]
[1763479883568,3.2078,3111.8,3110.5,3.2078]
[1763479883765,3.2078,3111.8,3111.0,3.2078]
[1763479884185,3.2078,3112.2,3112.0,0.52104]
[1763479884361,3.2078,3112.2,3112.0,0.52438822]
[1763479884670,1.14218725,3113.8,3112.2,1.0374]
[1763479884971,0.52061,3114.7,3113.7,3.2078]
[1763479885170,1.14218725,3115.3,3112.2,4.2494]
[1763479885171,3.2078,3114.3,3113.3,3.2078]
[1763479885465,3.2078,3114.8,3113.4,3.2078]
[1763479885670,3.2078,3114.4,3113.9,0.52072]
[1763479885871,3.21262245,3114.4,3113.8,0.00482245]
[1763479886074,3.73328245,3114.4,3113.8,0.00482245]
[1763479886368,3.2078,3113.9,3112.2,3.2078]
[1763479886556,3.2078,3112.5,3111.2,3.2078]
[1763479886763,3.2078,3112.1,3111.4,0.52114]
[1763479886960,3.2078,3112.9,3111.4,3.2078]
[1763479887160,3.2078,3112.0,3111.2,0.52117]
[1763479887369,3.2078,3111.4,3110.3,3.2078]
[1763479887674,3.21117722,3111.4,3111.3,0.00482245]
[1763479887869,3.21117722,3111.4,3110.7,3.72906]
[1763479888070,3.21117722,3111.4,3110.4,0.52132]
[1763479888264,0.00337722,3111.4,3110.4,3.2078]
[1763479888468,0.00337722,3111.4,3110.8,3.2078]
[1763479888666,0.00337722,3111.4,3110.6,0.52127]
[1763479888667,0.52453722,3111.4,3110.6,0.52127]
[1763479888968,0.52116,3111.3,3110.7,0.00482245]
[1763479889163,0.52124,3110.9,3110.7,0.00482245]
[1763479889364,0.85747438,3110.8,3110.3,0.00236147]
[1763479889563,3.21117722,3111.4,3110.5,0.52128]
[1763479889761,0.5213,3110.5,3110.3,0.00236147]
[1763479889969,3.2078,3110.8,3110.3,0.00236147]
[1763479889970,0.52128,3110.7,3110.3,0.00236147]
[1763479890164,3.72906,3110.8,3110.3,0.00236147]
[1763479890368,3.2078,3110.4,3109.0,3.2078]
[1763479890563,3.2078,3110.4,3108.5,3.2078]
[1763479890564,3.2078,3109.6,3108.5,3.2078]
[1763479890766,3.2078,3110.2,3109.4,3.2078]
[1763479890972,1.7106845,3110.6,3109.4,3.2078]
[1763479890973,3.2078,3110.7,3109.4,3.2078]
[1763479891274,0.85708548,3110.6,3109.8,3.2078]
[1763479891468,1.7106845,3111.2,3109.9,0.00482245]
[1763479891469,0.52138,3110.1,3109.9,0.00482245]
[1763479891667,3.2078,3110.2,3109.9,0.00482245]
[1763479891868,3.72916,3110.2,3109.9,0.00482245]
[1763479892064,0.52138,3110.1,3109.9,0.00482245]
[1763479892269,3.2078,3110.2,3109.8,0.00269961]
[1763479892270,0.5214,3109.9,3109.8,2.206e-05]
[1763479892468,3.2078,3110.2,3109.8,2.206e-05]
[1763479892774,0.00482245,3110.5,3109.8,2.206e-05]
[1763479892973,3.2078,3110.2,3109.8,2.206e-05]
[1763479893164,0.52139,3110.0,3109.8,2.206e-05]
[1763479893365,3.2078,3110.2,3108.6,3.2078]
[1763479893675,3.2078,3109.8,3109.0,3.2078]
[1763479893980,3.2078,3109.8,3109.2,0.52151]
[1763479894166,3.2078,3110.2,3109.4,3.2078]
[1763479894370,0.00482245,3110.5,3110.3,0.52132]
[1763479894677,1.14218725,3112.0,3110.9,0.9898]
[1763479894872,0.52095,3112.6,3111.9,3.72886]
[1763479895176,3.2078,3112.3,3111.5,3.2078]
[1763479895570,3.2078,3112.7,3111.5,3.2078]
[1763479895873,0.00482245,3112.2,3112.0,0.52104]
[1763479896078,0.00482245,3112.2,3111.8,0.52107]
[1763479896266,0.00482245,3112.2,3111.6,0.00482245]
[1763479896677,3.72889,3111.8,3111.6,0.00482245]
[1763479896884,3.2078,3111.8,3111.5,0.00399273]
[1763479897175,0.00482245,3112.2,3111.7,3.72888]
[1763479897381,0.00482245,3112.2,3111.9,0.52106]
[1763479897577,0.00482245,3112.2,3111.7,3.2078]
[1763479897779,0.52106,3112.0,3111.7,3.2078]
[1763479897982,0.52107,3111.9,3111.7,3.2078]
[1763479898182,0.00482245,3112.2,3111.7,3.2078]
[1763479898776,3.2078,3112.0,3111.5,0.00399273]
[1763479898983,0.52114,3111.5,3110.9,0.52123]
[1763479899185,3.72892,3111.6,3111.0,0.52121]
[1763479899380,3.2078,3112.1,3111.0,3.2078]
[1763479899679,0.52107,3111.9,3111.3,0.52116]
[1763479899881,3.2078,3112.1,3111.6,0.52111]
[1763479900081,3.2078,3112.1,3111.3,0.00357951]
[1763479900479,0.00482245,3112.2,3111.8,3.2078]
[1763479900982,0.00482245,3112.2,3112.0,0.52104]
[1763479901376,0.00482245,3112.2,3112.0,6.52104]
[1763479901588,3.2078,3112.1,3111.3,0.00357951]
[1763479901786,3.2078,3111.4,3110.0,3.2078]
[1763479901981,3.2078,3110.5,3109.7,0.52143]
[1763479902182,3.2078,3110.5,3109.4,3.2078]
[1763479902183,0.52135,3110.3,3109.4,3.2078]
[1763479902386,3.72917,3110.1,3109.5,0.52145]
[1763479902589,0.00482245,3110.4,3109.4,3.2078]
[1763479902882,2.28292485,3111.6,3109.4,3.2078]
[1763479902883,3.2078,3110.9,3109.8,3.2078]
[1763479903084,3.2078,3110.9,3109.9,0.52139]
[1763479903280,3.2078,3110.9,3109.8,3.2078]
[1763479903693,3.2078,3110.9,3110.5,0.52129]
[1763479903884,3.21120562,3110.9,3110.7,0.52126]
[1763479904390,3.2078,3111.1,3110.9,0.52123]
[1763479904688,3.2078,3111.1,3110.4,0.00482245]
[1763479904887,0.52129,3110.6,3110.4,0.00482245]
[1763479905086,3.2078,3110.7,3109.7,3.2078]
[1763479905388,3.2078,3110.2,3109.8,0.52141]
[1763479905588,3.2078,3110.6,3109.7,3.2078]
[1763479905985,3.2078,3110.6,3109.7,3.72923]
[1763479906182,0.00482245,3110.5,3109.8,0.00482245]
[1763479906583,0.00482245,3110.5,3110.0,0.52138]
[1763479906787,0.00482245,3110.5,3110.1,3.2078]
[1763479907086,0.00482245,3110.5,3110.3,0.52133]
[1763479907290,0.00482245,3110.5,3110.1,3.2078]
[1763479907688,0.00482245,3110.5,3110.1,0.52136]
[1763479907986,0.00482245,3110.5,3109.8,0.00482245]
[1763479908185,0.52612245,3110.5,3110.1,0.52137]
[1763479908385,0.00482245,3110.5,3110.2,0.52135]
[1763479908587,0.00482245,3110.5,3109.8,0.00482245]
[1763479908788,0.52612245,3110.5,3110.0,0.52138]
[1763479908984,0.52612245,3110.5,3110.1,0.52136]
[1763479909187,3.2078,3110.3,3109.8,0.00482245]
[1763479909384,3.2078,3109.9,3109.4,0.00411947]
[1763479909784,3.2078,3109.9,3109.4,3.21191947]
[1763479909982,3.2078,3109.9,3109.4,0.00411947]
[1763479910495,3.2078,3109.5,3109.4,0.00411947]
[1763479911283,4.05057123,3109.5,3108.6,3.2078]
[1763479911601,3.2078,3109.5,3109.4,0.52148]
[1763479911896,3.2078,3110.0,3109.0,3.72934]
[1763479912096,3.2078,3109.7,3109.0,3.2078]
[1763479912285,3.2078,3110.1,3109.0,3.21189273]
[1763479912483,3.2078,3110.1,3109.4,3.2078]
[1763479912688,3.2078,3110.1,3109.9,0.5214]
[1763479912888,0.00482245,3110.5,3109.4,3.2078]
[1763479913087,0.52133,3110.4,3109.4,3.2078]
[1763479913287,0.00482245,3110.5,3109.4,3.2078]
[1763479913482,0.52132,3110.4,3109.4,3.2078]
[1763479913689,0.00482245,3110.5,3110.4,0.52132]
[1763479913991,0.00482245,3110.5,3109.3,7.599]
[1763479913992,0.952,3110.4,3109.3,3.2078]
[1763479914198,3.2078,3110.0,3109.3,3.2078]
[1763479914499,3.2078,3109.6,3109.4,0.52148]
[1763479914705,3.2078,3110.0,3109.0,0.00409273]
[1763479914898,3.2078,3110.0,3109.1,3.2078]
[1763479915285,3.2078,3110.0,3109.8,0.5214]
[1763479916499,3.2078,3110.0,3109.5,11.5728]
[1763479916694,3.2078,3110.0,3109.8,0.52142]
[1763479916895,3.2078,3110.0,3109.5,3.2078]
[1763479917100,3.2078,3110.0,3109.9,0.5214]
[1763479917298,3.2078,3110.0,3109.5,3.2078]
[1763479917495,3.2078,3110.0,3109.9,0.5214]
[1763479917799,3.2078,3110.0,3109.0,3.21189273]
[1763479917991,3.2078,3110.4,3109.4,3.2078]
[1763479918194,0.52133,3110.3,3109.4,3.2078]
[1763479918389,3.2078,3109.5,3109.0,0.00409273]
[1763479918597,3.2078,3109.1,3107.6,3.2078]
[1763479918803,3.2078,3108.4,3107.2,3.2078]
[1763479919103,0.52188,3107.1,3106.0,3.2078]
[1763479919398,0.52186,3107.2,3107.0,0.30146965]
[1763479919594,3.2078,3107.1,3105.8,3.2078]
[1763479919794,3.2078,3106.1,3105.3,14.52943045]
[1763479919988,2.245e-05,3106.0,3105.7,3.2078]
[1763479920193,3.2078,3107.0,3105.7,3.2078]
[1763479920496,3.2078,3107.0,3106.1,3.2078]
[1763479920801,2.84446704,3108.7,3106.1,3.2078]
[1763479920802,3.2078,3109.3,3106.9,3.2078]
[1763479920989,0.52156,3109.0,3108.3,0.52166]
[1763479921297,3.08075084,3109.3,3107.9,5.766]
[1763479921499,3.08075084,3109.3,3108.9,0.52156]
[1763479921803,0.00307457,3109.3,3109.2,3.2078]
[1763479922004,3.2078,3110.0,3109.6,0.52143]
[1763479922203,0.52142,3109.8,3108.9,0.00249213]
[1763479922497,0.52626245,3109.7,3109.2,3.2078]
[1763479922702,0.00482245,3109.7,3109.0,0.00482245]
[1763479922903,0.00482245,3109.7,3109.3,3.2078]
[1763479923096,0.00763999,3109.7,3109.0,8.89036245]
[1763479923297,3.2078,3109.2,3108.9,0.00249213]
[1763479923503,4.1603,3109.2,3108.5,3.06358234]
[1763479923694,0.52158,3108.9,3108.5,3.06358234]
[1763479923891,0.00763999,3109.7,3108.5,3.06358234]
[1763479924092,0.00763999,3109.7,3109.6,3.2078]
[1763479924498,0.00763999,3109.7,3109.6,3.21023318]
[1763479924703,3.2078,3110.5,3109.6,3.54438214]
[1763479924902,3.7291,3110.5,3109.6,4.06583214]
[1763479925102,3.2078,3110.5,3109.6,11.90838214]
[1763479925500,3.2078,3110.5,3110.3,0.52133]
[1763479925705,3.21044229,3110.5,3109.6,3.21023318]
[1763479926003,3.2078,3109.7,3109.6,0.00243318]
[1763479926204,4.16770001,3110.4,3109.1,3.2078]
[1763479926393,3.21044229,3110.5,3109.7,3.2078]
[1763479926597,3.21044229,3110.5,3110.3,0.52133]
[1763479926796,1.7106845,3111.8,3109.7,3.2078]
[1763479926797,3.2078,3111.5,3110.4,8.363]
[1763479926996,0.80028797,3111.4,3110.6,3.2078]
[1763479927202,3.2078,3111.1,3110.4,8.363]
[1763479927403,3.2078,3111.0,3110.1,3.72916]
[1763479927605,0.52121,3111.1,3110.2,8.363]
[1763479927806,3.2078,3110.3,3109.5,3.2078]
[1763479928007,0.52131,3110.5,3109.6,0.00482245]
[1763479928198,3.2078,3110.0,3109.6,0.00482245]
[1763479928399,3.21262245,3111.0,3109.9,3.2078]
[1763479928702,0.00482245,3111.0,3110.7,3.2078]
[1763479928903,3.2078,3111.8,3110.8,7.333]
[1763479929302,3.2078,3111.8,3111.6,0.52111]
[1763479929500,2.84446704,3113.5,3110.9,8.362]
[1763479929501,3.2078,3112.7,3112.5,0.52096]
[1763479929707,1.14660642,3114.0,3112.6,11.574]
[1763479929904,0.78600563,3113.9,3113.4,3.2078]
[1763479930103,0.00482245,3113.6,3113.4,3.72861]
[1763479930710,3.2078,3114.9,3113.5,3.2112]
[1763479930895,3.2078,3115.4,3114.4,3.2078]
[1763479931304,3.2078,3115.4,3114.8,0.52058]
[1763479931499,1.14660642,3116.7,3114.9,3.2078]
[1763479931802,0.00394115,3116.4,3115.6,3.2078]
[1763479932006,4.115e-05,3116.4,3116.2,0.52033]
[1763479932305,1.44e-05,3116.3,3116.0,3.2078]
[1763479932510,1.44e-05,3116.3,3116.0,7.4518]
[1763479932807,1.44e-05,3116.3,3116.1,3.2088]
[1763479933010,1.44e-05,3116.3,3116.1,3.72916]
[1763479933203,1.44e-05,3116.3,3116.2,11.5668]
[1763479933510,1.44e-05,3116.3,3115.3,3.2126144]
[1763479933511,0.5203644,3116.3,3115.3,3.2126144]
[1763479933805,3.2078,3115.4,3114.4,3.2078]
[1763479934212,0.9525,3116.1,3115.2,3.2078]
[1763479934399,3.2078,3115.9,3114.8,2.37597038]
[1763479934603,3.2078,3114.9,3114.4,40.8]
[1763479934813,3.2078,3115.9,3114.8,0.0048144]
[1763479935111,3.2078,3115.5,3114.8,0.0048144]
[1763479935506,3.2078,3115.9,3114.8,0.0048144]
[1763479935801,3.2078,3116.2,3115.2,3.2078]
[1763479936106,1.44e-05,3116.3,3115.2,3.2078]
[1763479936307,1.44e-05,3116.3,3115.7,3.2078]
[1763479936498,0.52048,3115.4,3114.9,8.352]
[1763479936702,1.44e-05,3116.3,3114.8,0.0048144]
[1763479936703,3.2078,3115.2,3114.8,0.0048144]
[1763479937005,3.2078,3115.0,3114.8,0.0048144]
[1763479937301,1.44e-05,3116.3,3114.8,0.0048144]
[1763479937302,1.44e-05,3116.3,3114.8,9.2126144]
[1763479937506,3.2078,3116.1,3115.4,0.52047]
[1763479937713,3.2078,3115.7,3114.8,0.0048144]
[1763479938106,4.68067,3116.1,3115.5,3.2078]
[1763479938300,1.44e-05,3116.3,3116.1,0.52036]
[1763479938511,1.44e-05,3116.3,3115.8,8.8714]
[1763479938709,1.44e-05,3116.3,3115.9,0.52039]
[1763479939214,1.44e-05,3116.3,3115.9,3.72819]
[1763479939511,1.44e-05,3116.3,3115.5,3.2078]
[1763479939704,1.44e-05,3116.3,3115.9,3.2078]
[1763479940016,3.2078,3117.2,3116.6,0.52027]
[1763479940201,3.2078,3117.2,3116.8,3.2078]
[1763479940407,3.2078,3117.2,3116.4,3.2078]
[1763479940714,3.72799,3117.2,3116.0,3.2078]
[1763479940915,0.0048144,3116.9,3116.7,0.52026]
[1763479941112,3.2078,3118.1,3117.4,0.52013]
[1763479941408,0.52017,3117.3,3116.4,3.2078]
[1763479941610,3.72793,3117.5,3116.5,0.52029]
[1763479941806,0.52022,3117.0,3116.4,3.2078]
[1763479942010,3.2078,3117.3,3116.4,3.2078]
[1763479942207,0.52031,3116.5,3116.3,0.0048144]
[1763479942409,3.2078,3116.7,3115.0,3.2078]
[1763479942602,0.52059,3114.8,3114.1,3.2078]
[1763479942807,0.52059,3114.8,3114.0,0.5207]
[1763479943002,0.52062,3114.6,3113.7,3.2078]
[1763479943202,3.2078,3115.1,3114.1,3.2078]
[1763479943405,3.2078,3116.1,3114.6,3.2078]
[1763479943607,3.2078,3115.1,3114.3,3.2126144]
[1763479943804,0.0048144,3115.7,3114.3,3.2126144]
[1763479943805,3.2078,3114.7,3114.3,3.2126144]
[1763479944005,3.2078,3115.6,3114.3,3.2126144]
[1763479944205,3.2078,3115.6,3114.9,0.52056]
[1763479944411,0.52054,3115.1,3114.4,3.72844]
[1763479944611,0.0048144,3115.7,3114.6,0.52061]
[1763479944612,0.52051,3115.3,3114.6,0.52061]
[1763479944921,0.52047,3115.5,3114.4,3.2078]
[1763479945214,3.2078,3115.5,3114.4,3.2078]
[1763479945612,3.72827,3115.5,3114.4,3.2078]
[1763479945816,3.2078,3115.5,3114.4,3.2078]
[1763479946021,0.0048144,3115.7,3115.6,0.52045]
[1763479946207,0.00326446,3116.1,3115.6,3.2078]
[1763479946407,0.00326446,3116.1,3114.3,0.0048144]
[1763479946408,0.52041,3115.9,3115.2,3.72831]
[1763479946616,0.00326446,3116.1,3115.2,3.2078]
[1763479946819,0.52039,3116.0,3115.2,3.7283]
[1763479947007,0.00326446,3116.1,3115.9,0.52039]
[1763479947316,0.39699,3117.2,3116.0,11.5518]
[1763479947520,0.39699,3117.2,3116.6,3.2078]
[1763479947713,0.39699,3117.2,3117.0,0.5202]
[1763479948018,0.39699,3117.2,3117.0,3.72801]
[1763479948219,0.3997144,3117.2,3117.0,3.73133169]
[1763479948414,0.3997144,3117.2,3117.0,3.21112169]
[1763479948619,0.3997144,3117.2,3117.0,0.00332169]
[1763479949515,0.3997144,3117.2,3117.0,0.52353169]
[1763479949922,0.3997144,3117.2,3117.0,0.00332169]
[1763479950313,0.00320426,3117.4,3117.3,0.52016]
[1763479950618,3.2424,3118.7,3117.3,9.2078]
[1763479950918,0.0346,3118.7,3118.5,0.51996]
[1763479951221,0.0346,3118.7,3118.4,3.2078]
[1763479951423,0.03869713,3118.7,3118.4,3.2078]
[1763479951824,3.2078,3119.6,3118.4,6.4142]
[1763479952123,3.2078,3119.6,3119.4,0.5198]
[1763479952317,4.1616,3120.0,3119.4,0.5198]
[1763479952516,3.2078,3120.4,3119.2,3.2078]
[1763479952719,3.2078,3120.4,3119.9,3.2078]
[1763479952921,0.0027555,3120.4,3119.9,0.00366837]
[1763479953121,0.0027555,3120.4,3120.2,0.51967]
[1763479953326,3.2105555,3120.4,3119.9,0.00366837]
[1763479953720,0.0027555,3120.4,3120.2,0.51967]
[1763479953920,0.0027555,3120.4,3119.9,0.00366837]
[1763479954127,0.0027555,3120.4,3120.2,3.72747]
[1763479954429,0.0027555,3120.4,3119.9,0.00366837]
[1763479954725,0.0027555,3120.4,3120.2,0.51967]
[1763479954923,0.0027555,3120.4,3120.1,3.2078]
[1763479955325,0.0027555,3120.4,3120.2,0.51968]
[1763479955721,3.2078,3121.7,3120.2,6.0]
[1763479955918,3.2078,3122.1,3121.5,3.2078]
[1763479956224,3.2078,3122.1,3121.2,0.51951]
[1763479956426,0.51944,3121.7,3121.1,3.2078]
[1763479956928,3.2078,3122.1,3121.6,0.51945]
[1763479957135,3.2078,3122.1,3121.5,3.2078]
[1763479957435,3.7078,3123.0,3121.9,3.2078]
[1763479957621,0.51925,3122.8,3122.0,0.51937]
[1763479957817,3.7078,3123.0,3122.3,3.2078]
[1763479958016,3.7078,3123.0,3122.3,3.21090709]
[1763479958216,0.5,3123.0,3122.3,3.21090709]
[1763479959028,3.2078,3122.7,3122.3,0.00310709]
[1763479959236,3.2078,3122.5,3121.4,3.2078]
[1763479959442,3.2078,3122.5,3121.8,3.2078]
[1763479959630,0.5,3123.0,3122.4,3.2078]
[1763479960236,0.50775713,3123.0,3122.4,3.54897936]
[1763479960439,0.50775713,3123.0,3122.4,0.00780975]
[1763479960641,0.51924,3122.9,3122.4,0.00780975]
[1763479960837,0.50775713,3123.0,3122.0,3.2078]
[1763479961137,0.5193,3122.5,3121.9,3.2078]
[1763479961331,0.50775713,3123.0,3122.3,3.2078]
[1763479961533,0.51926,3122.8,3122.3,3.2078]
[1763479961738,0.51925,3122.8,3122.3,3.2078]
[1763479961939,3.71555713,3123.0,3122.3,3.21151553]